Cogmind - Beta 15 @@@ ROGUE MODE // 2025.09.02 @ 16:30:10 Player: the Result: Self-destructed Performance ------------- Evolutions (3) 1500 Regions Visited (7) 1400 Robots Destroyed (119) 595 Value Destroyed (3265) 3265 Prototype IDs (49) 980 Alien Tech Used (0) 0 Bonus (777) 777 TOTAL SCORE: 8517 Bonus ------- High Alert Combat Kills 548 Follower Combat Kills 7 Aligned with FarCom 300 Friendly Fire -78 Cogmind --------- Core Integrity 308/700 Matter 272/300 Energy 100/100 System Corruption 6% Temperature Cool (0) Movement Core (50) Location -7/Storage Parts ------- > --- POWER (1) -------- (None) > --- PROPULSION (4) --- (None) > --- UTILITY (6) ------ (None) > --- WEAPON (2) ------- (None) > --- INVENTORY (5) ---- Enhanced Nuclear Core Weapon Cycler Authchip [Propulsion] AWS/Gauss Peak State ------------ > --- POWER ------------ Heavy Deuterium Engine > --- PROPULSION ------- Improved Carbon-fiber Leg Improved Carbon-fiber Leg Improved Carbon-fiber Leg Improved Carbon-fiber Leg > --- UTILITY ---------- Improved Cooling System High-capacity Storage Unit Enhanced Optical Array Core Analyzer Hacking Suite Improved Recalibrator > --- WEAPON ----------- AWS/Gauss > --- INVENTORY -------- Enhanced Nuclear Core Weapon Cycler System Shield Authchip [R/NC] Authchip [Propulsion] Authchip [Propulsion] Authchip [Propulsion] Authchip [Device] Authchip [Processor] Authchip [Armor] Authchip [Weapon] Improved Trap Extractor Gatling Laser Gatling Laser Gatling Laser Heavy Rocket Launcher Improved Datajack Power Maul [Rating: 67] Favorites ----------- Power Micro Nuclear Core Engine Light Ion Engine Power Core Micro Nuclear Core Propulsion Armored Wheel Leg Aluminum Leg Wheel Armored Wheel Utility Hacking Suite Device Improved Cooling System Storage High-capacity Storage Unit Processor Enhanced Optical Array Hackware Hacking Suite Protection Improved Medium Armor Plating Weapon Gatling Laser Energy Gun Gatling Laser Energy Cannon Beam Cannon Ballistic Gun AWS/Gauss Impact Weapon Power Maul Special Melee Weapon Improved Datajack Build | -11 -10 -10 -10 -9 -8 -7 -7 ------- Run | Yrd Mat Min Exi Min Mat Fac Sto Slots Evolved 6 | . . . . . 4 2 . Power . | . . . . . . . . Propulsion 2 | . . . . . 2 . . Utility 4 | . . . . . 2 2 . Weapon . | . . . . . . . . Parts Attached 75 | 8 1 5 3 3 19 24 12 Power 7 | 2 . . . 1 1 1 2 Engine 4 | 2 . . . 1 . . 1 Core 3 | . . . . . 1 1 1 Reactor . | . . . . . . . . Propulsion 14 | 2 . 2 . . 4 2 4 Treads . | . . . . . . . . Leg 8 | 2 . 2 . . . . 4 Wheel 6 | . . . . . 4 2 . Hover . | . . . . . . . . Flight . | . . . . . . . . Utility 32 | 2 1 1 1 . 6 16 5 Device 8 | 1 1 . . . 2 3 1 Storage 4 | 1 . . 1 . 1 1 . Processor 4 | . . 1 . . . 3 . Hackware 5 | . . . . . 1 3 1 Protection 11 | . . . . . 2 6 3 Artifact . | . . . . . . . . Weapon 22 | 2 . 2 2 2 8 5 1 Energy Gun 14 | 2 . 2 . . 6 4 . Energy Cannon 3 | . . . . 2 . 1 . Ballistic Gun 3 | . . . 1 . 2 . . Ballistic Cannon . | . . . . . . . . Launcher . | . . . . . . . . Special Weapon . | . . . . . . . . Impact Weapon 1 | . . . . . . . 1 Slashing Weapon . | . . . . . . . . Piercing Weapon . | . . . . . . . . Special Melee Weapon 1 | . . . 1 . . . . Unidentified Prototypes 4 | . . . . . 3 . 1 Parts Lost 7 | . . 3 . . . 1 3 Power 1 | . . 1 . . . . . Propulsion 3 | . . . . . . 1 2 Utility 2 | . . 1 . . . . 1 Weapon 1 | . . 1 . . . . . Highest Loss Streak 3 | . . 3 . . . 1 2 To Critical Strikes . | . . . . . . . . Average Backups 14 | 2 6 8 7 6 17 19 18 Power 1 | . 1 1 . . 1 1 1 Propulsion 2 | . . . 1 . 1 4 . Utility 5 | . . 1 1 2 5 7 11 Weapon 4 | 1 4 4 4 3 7 3 4 Tool/Special . | . . . . . . . . Unused Backups 32 | . 3 1 1 2 4 6 15 Power 2 | . . . . . 1 . 1 Propulsion 2 | . . . . 1 . 1 . Utility 14 | . . . . . 1 2 11 Weapon 14 | . 3 1 1 1 2 3 3 Tool/Special . | . . . . . . . . Average Slot Usage (%) 89 | . 100 84 77 99 92 87 90 Engine 3 | . 14 1 2 14 1 . 5 Core 4 | . . . . . 7 7 1 Leg 11 | . 28 28 28 28 3 . 23 Wheel 15 | . . . . . 29 23 2 Device 5 | . 14 1 . . 9 4 8 Storage 9 | . 14 14 14 14 9 7 7 Processor 10 | . . 10 14 14 3 10 15 Hackware 5 | . . . . . 4 8 5 Protection 5 | . . . . . 5 9 6 Energy Gun 11 | . 28 26 8 . 17 10 5 Energy Cannon 2 | . . . . 26 . . . Ballistic Gun 1 | . . . 4 . . 1 4 Peak Build Rating 67 | 7 7 11 24 24 35 58 67 Average Rating 37 | 6 7 9 14 12 30 52 59 On Entrance 18 | . 7 7 11 24 11 35 52 Naked Turns . | . . . . . . . . Heaviest Build 76 | 14 13 13 25 25 59 76 76 Greatest Support 72 | 20 20 20 20 20 48 52 72 Greatest Overweight (x) 4 | 2 . . 1 1 4 2 1 Average Overweight (x) . | . . . . . . 1 . Largest Inventory Capacity 20 | 8 8 8 10 10 20 20 20 Average Capacity 16 | 7 8 8 8 10 18 20 20 Most Carried 20 | 3 8 8 8 10 20 20 20 Average Carried 15 | 2 6 7 7 9 18 19 18 Final Capacity 20 | 8 8 8 10 10 20 20 5 Final Carried 20 | 3 8 8 8 10 20 20 5 Class Distribution -------------------- 87% | Mutant 10% | Hacker-Mutant Dominant Class ---------------- Mutant | -10/Materials Mutant | -10/Mines Mutant | -10/Exiles Mutant | -9/Mines Mutant | -8/Materials Mutant | -7/Factory Mutant | -7/Storage Resources | -11 -10 -10 -10 -9 -8 -7 -7 ----------- Run | Yrd Mat Min Exi Min Mat Fac Sto Matter Collected 1447 | 280 5 56 . 106 205 455 340 Remotely 10 | 10 . . . . . . . Salvage Created 4227 | 181 13 . . 306 705 2192 830 Parts 218 | 13 2 . . 10 36 113 44 Haulers Intercepted 5 | . . . . . 3 1 1 Recyclers Shooed 6 | . 1 . . 1 1 3 . Parts Field Recycled . | . . . . . . . . Retrieved Matter . | . . . . . . . . Parts Self-Destructed . | . . . . . . . . Prevented . | . . . . . . . . Kills | -11 -10 -10 -10 -9 -8 -7 -7 ------- Run | Yrd Mat Min Exi Min Mat Fac Sto Combat Hostiles Destroyed 62 | . . . . 2 8 37 15 Guns 60 | . . . . . 8 37 15 Cannons 2 | . . . . 2 . . . Classes Destroyed 14 | 2 1 . . 2 6 3 . Worker 14 | . . . . 1 2 10 1 Builder 4 | . . . . . 1 2 1 Tunneler 7 | 6 . . . . . 1 . Hauler 5 | . . . . . 3 1 1 Recycler 11 | 1 . . . 2 2 6 . Mechanic 2 | . . . . . 1 1 . Operator 4 | . . . . . . 2 2 Watcher 9 | . 1 . . . 1 5 2 Swarmer 22 | . . . . . 3 13 6 Grunt 18 | . . . . . 2 15 1 Brawler 1 | . . . . . . 1 . Sentry 12 | . . . . 2 3 2 5 Hunter 1 | . . . . . 1 . . Programmer 9 | . . . . . . 6 3 Best Kill Streak 16 | 3 1 . . 2 3 16 6 Combat Bots Only 6 | . . . . 2 3 5 6 Max Kills in Single Turn 3 | 1 1 . . 1 2 3 1 Gunslinging 1 | . . . . . 1 . . Exploded . | . . . . . . . . Melee . | . . . . . . . . Uniques/NPCs Destroyed . | . . . . . . . . Combat | -11 -10 -10 -10 -9 -8 -7 -7 -------- Run | Yrd Mat Min Exi Min Mat Fac Sto Hostile Shots Fired 456 | . 4 6 . 6 28 170 242 Missed 152 | . 1 1 . 2 9 55 84 Hits 304 | . 3 5 . 4 19 115 158 Projectile 304 | . 3 5 . 4 19 115 158 AOE 10 | . . 10 . . . . . Critical Strikes 9 | . . . . . 2 6 1 Part Disruptions 1 | . . . . . . 1 . Damage Taken 3740 | . 32 294 . 60 263 1644 1447 Core 478 | . 10 49 . . 27 199 193 Absorbed by Shields . | . . . . . . . . Regen/Repaired (Parts) 141 | . . . . . 100 41 . Core Remaining (%) 90 | 100 . . . 76 95 . . Volleys Fired 163 | 45 1 1 . 10 30 59 17 Largest 2 | 2 2 2 . 2 2 2 2 Hottest 160 | 100 100 100 . 120 160 160 160 Shots Fired 434 | 59 2 2 . 20 60 207 84 Gun 413 | 59 2 2 . . 60 206 84 Cannon 21 | . . . . 20 . 1 . Launcher . | . . . . . . . . Special . | . . . . . . . . Kinetic 140 | . . . . . . 89 51 Thermal 294 | 59 2 2 . 20 60 118 33 Explosive . | . . . . . . . . Electromagnetic . | . . . . . . . . Robot Hit Streak 19 | 5 1 3 . 8 12 19 16 Robot Miss Streak 8 | 3 1 . . 2 4 8 6 Penetration Max . | . . . . . . . . Secondary Targets 7 | . . . . . 1 5 1 Max Gunslinging Chain 1 | . . . . . 1 1 1 Autonomous 143 | . . . . . . 90 53 Shots Hit Robots 334 | 37 1 2 11 12 43 163 65 Core Hits 206 | 8 1 1 . 7 28 117 44 Critical Kills . | . . . . . . . . Critical Parts Destroyed . | . . . . . . . . Critical Strikes 3 | 1 . . . . 2 . . Burn 3 | 1 . . . . 2 . . Melee Attacks 13 | . . . 11 . . . 2 Impact 2 | . . . . . . . 2 Slashing . | . . . . . . . . Piercing . | . . . . . . . . Sneak Attacks 11 | . . . 11 . . . . Combat Hostiles . | . . . . . . . . Follow-up Attacks . | . . . . . . . . Damage Inflicted 8555 | 472 14 30 . 221 859 5036 1923 Guns 7661 | 472 12 26 . . 851 4406 1894 Cannons 211 | . . . . 211 . . . Explosions 612 | . . . . . . 612 . Melee . | . . . . . . . . Ramming 71 | . 2 4 . 10 8 18 29 Kinetic 3544 | . . . . . . 2263 1281 Thermal 4328 | 472 12 26 . 211 851 2143 613 Explosive 612 | . . . . . . 612 . Electromagnetic . | . . . . . . . . Impact . | . . . . . . . . Slashing . | . . . . . . . . Piercing . | . . . . . . . . Highest Corruption 6 | . 1 1 1 1 . 4 6 Average Corruption 1 | . 1 1 1 1 . 1 4 Corruption Purged . | . . . . . . . . Corruption Blocked . | . . . . . . . . Effects 75 | . 1 3 3 4 . 41 23 Message Errors 22 | . . 1 2 1 . 12 6 Matter Fused 19 | . 1 2 1 1 . 7 7 Heat Flow Errors 5 | . . . . 1 . 2 2 Energy Discharges 10 | . . . . 1 . 7 2 Parts Rejected 1 | . . . . . . 1 . Parts Fused 1 | . . . . . . . 1 Data Loss (minor) 9 | . . . . . . 7 2 Data Loss (major) 2 | . . . . . . 1 1 Misfires 2 | . . . . . . 2 . Alerts 2 | . . . . . . 1 1 Weapon Failures 2 | . . . . . . 1 1 Overload Shots . | . . . . . . . . Overflow Damage 84 | . . . . . . 82 2 Projectiles . | . . . . . . . . Explosions 82 | . . . . . . 82 . Melee 2 | . . . . . . . 2 Knockbacks 1 | . . . . . . 1 . Impact 1 | . . . . . . 1 . Kinetic . | . . . . . . . . Secondary . | . . . . . . . . Self-Inflicted Damage 13 | . . . . . 4 9 . Shots . | . . . . . . . . Rammed 2 | . . . . . 1 1 . Targets Rammed 9 | . 1 1 . 3 1 1 2 Kicked 7 | . 1 1 . 3 . . 2 Crushed . | . . . . . . . . Highest Temperature 415 | 244 39 39 . 249 157 415 372 Average Temperature 90 | 93 20 20 . 95 41 109 104 Received Heat Transfer 957 | . 18 . . 9 90 426 414 Effects 5 | 1 . . . . . 4 . Shutdowns 1 | . . . . . . 1 . Interference 4 | 1 . . . . . 3 . Siege Activations . | . . . . . . . . Martial Activations . | . . . . . . . . Shielding Activations . | . . . . . . . . Robots Disrupted . | . . . . . . . . Combat Hostiles . | . . . . . . . . Robots Corrupted . | . . . . . . . . Combat Hostiles . | . . . . . . . . Parts Fried 1 | . . . . . . . 1 Impact Corruptions 1 | . . . . . . . 1 Robots Melted . | . . . . . . . . Combat Hostiles . | . . . . . . . . Parts Melted 22 | 3 . . . 1 1 12 5 Heat Transferred 10173 | 1480 37 74 . 444 2063 4700 1375 Parts Sabotaged . | . . . . . . . . Parts Stolen . | . . . . . . . . Parts Stripped . | . . . . . . . . Power Chain Reactions . | . . . . . . . . Alert | -11 -10 -10 -10 -9 -8 -7 -7 ------- Run | Yrd Mat Min Exi Min Mat Fac Sto Maximum Alert Level 4 | . . . . . . 4 2 Low Security (%) 54 | 100 100 100 . 100 100 31 . Level 1 . | . . . . . . . 4 Level 2 20 | . . . . . . 16 95 Level 3 22 | . . . . . . 49 . Level 4 1 | . . . . . . 3 . Level 5 . | . . . . . . . . High Security . | . . . . . . . . Max Security . | . . . . . . . . Peak Influence 1104 | 10 12 . . 41 155 1104 637 Initial 501 | . . . . . . 51 501 Average 332 | . 1 . . 4 44 546 529 Influence Increases 2766 | 35 19 . . 100 405 1651 556 Destroy 0b10 Robot/C 1260 | . . . . 40 180 740 300 Destroy 0b10 Robot/NC 290 | 35 5 . . 15 55 140 40 Destroy Leader 330 | . 2 . . . 60 162 106 Allied During Kill 3 | . . . . . 3 . . Successful Hack 188 | . 12 . . . 17 128 31 Disable Machine 285 | . . . . 30 15 210 30 Destroy Structure 110 | . . . . 15 . 61 34 Lose Combat Pursuer 300 | . . . . . 75 210 15 Influence Decreases 2173 | 35 17 2 . 100 292 662 1065 Entered New Map 665 | . . 2 . . . 62 601 Time Decay 1458 | 35 17 . . 100 292 580 434 Lost Part 40 | . . . . . . 10 30 Lost Ally 10 | . . . . . . 10 . Squads Dispatched 26 | . 2 1 . . 1 15 7 Investigation 10 | . 1 1 . . 1 5 2 Extermination 10 | . . . . . . 7 3 Reinforcement 3 | . 1 . . . . 1 1 Assault 2 | . . . . . . 2 . Garrison 1 | . . . . . . . 1 Intercept . | . . . . . . . . Searches Triggered . | . . . . . . . . Construction Impeded . | . . . . . . . . Haulers Reinforced . | . . . . . . . . Active Scanning Responses . | . . . . . . . . Cargo Convoy Interrupts . | . . . . . . . . Stealth | -11 -10 -10 -10 -9 -8 -7 -7 --------- Run | Yrd Mat Min Exi Min Mat Fac Sto Distress Signals 9 | . 1 . . . 2 4 2 Communications Jammed . | . . . . . . . . Distress Signals . | . . . . . . . . Times Spotted 117 | . 5 3 . 2 16 63 28 Peak Tracking Total 9 | . 3 2 . 2 7 6 9 Tactical Retreats 8 | . . . . . 2 5 1 Traps | -11 -10 -10 -10 -9 -8 -7 -7 ------- Run | Yrd Mat Min Exi Min Mat Fac Sto Traps Triggered 5 | . . . . . . 4 1 Indirectly . | . . . . . . . . Trap Hack Attempts 18 | . . . . . . . 18 Triggered . | . . . . . . . . Disarmed . | . . . . . . . . Reprogrammed 6 | . . . . . . . 6 Reused . | . . . . . . . . Traps Extracted 6 | . . . . . . . 6 Installed . | . . . . . . . . Triggered . | . . . . . . . . Most Traps Carried 6 | . . . . 3 3 . 6 Machines | -11 -10 -10 -10 -9 -8 -7 -7 ---------- Run | Yrd Mat Min Exi Min Mat Fac Sto Machines Disabled 19 | . . . . 2 1 14 2 Max in Single Turn 3 | . . . . 1 . 3 1 Garrison Access 3 | . . . . . 1 1 1 Machines Repaired . | . . . . . . . . Machines Dismantled . | . . . . . . . . Machines Sabotaged . | . . . . . . . . Overloaded Fab Kills . | . . . . . . . . Hacking | -11 -10 -10 -10 -9 -8 -7 -7 --------- Run | Yrd Mat Min Exi Min Mat Fac Sto Machines Accessed 48 | . 2 1 2 . 10 22 11 Terminals 29 | . 1 . . . 6 13 9 Fabricators 4 | . . . . . . 4 . Repair Stations 4 | . . . . . 1 2 1 Recycling Units 2 | . 1 . . . . 1 . Scanalyzers 2 | . . . . . 2 . . Garrison Access 4 | . . . . . 1 2 1 Total Hacks 120 | . 6 1 2 . 35 56 20 Successful 71 | . 3 1 2 . 25 32 8 Failed 49 | . 3 . . . 10 24 12 Catastrophic 14 | . 1 . . . 2 9 2 Database Lockouts . | . . . . . . . . Manual 45 | . 2 . 2 . 5 31 5 Terminals 77 | . 4 . . . 20 36 17 Fabricators 10 | . . . . . . 10 . Repair Stations 9 | . . . . . 4 4 1 Recycling Units 5 | . 2 . . . . 3 . Scanalyzers 9 | . . . . . 9 . . Garrison Access 7 | . . . . . 2 3 2 Terminal Hacks 34 | . 2 1 2 . 9 14 6 Record 1 | . . . 1 . . . . Part Schematic 6 | . 1 . . . 1 3 1 Robot Schematic 1 | . . . . . . 1 . Robot Analysis 1 | . . . . . . 1 . Prototype ID Bank 5 | . . . . . 2 2 1 Open Door 3 | . . 1 . . . . 2 Branch Access Points 2 | . . . . . 1 1 . Terminal Index 2 | . . . . . . 2 . Fabricator Index 1 | . . . . . . 1 . Alert Level 3 | . . . . . 1 1 1 Locate Traps 2 | . . . . . 1 1 . Hauler Manifests 2 | . 1 . . . 1 . . Registered Components 3 | . . . . . 1 1 1 Zone Layout 1 | . . . . . 1 . . Proto ID Catalog 1 | . . . 1 . . . . Fabricator Hacks 4 | . . . . . . 4 . Load Schematic 4 | . . . . . . 4 . Repair Station Hacks 7 | . . . . . 4 3 . Scan Component 4 | . . . . . 2 2 . Repair 3 | . . . . . 2 1 . Recycling Unit Hacks 2 | . 1 . . . . 1 . Retrieve Components 2 | . 1 . . . . 1 . Scanalyzer 8 | . . . . . 8 . . Insert Component 4 | . . . . . 4 . . Analyze 4 | . . . . . 4 . . Garrison Access Hacks 3 | . . . . . 1 1 1 Seal Access 3 | . . . . . 1 1 1 Unauthorized Hacks 13 | . . . . . 3 9 1 Terminals 9 | . . . . . 3 5 1 Assimilate 3 | . . . . . 1 1 1 Botnet 5 | . . . . . 2 3 . Operators 1 | . . . . . . 1 . Fabricators 4 | . . . . . . 4 . Recompile 4 | . . . . . . 4 . Repair Stations . | . . . . . . . . Recycling Units . | . . . . . . . . Scanalyzers . | . . . . . . . . Garrison Access . | . . . . . . . . Data Cores Recovered 3 | . . . . . . 1 2 Used . | . . . . . . . . Hacking Detections 37 | . 1 . . . 8 20 8 Full Trace Events 4 | . 1 . . . 1 1 1 Feedback Events 1 | . 1 . . . . . . Corruption 1 | . 1 . . . . . . Feedback Blocked . | . . . . . . . . Robot Schematics Acquired 1 | . . . . . . 1 . Robots Built . | . . . . . . . . Authchips . | . . . . . . . . Time . | . . . . . . . . Total Robot Build Rating . | . . . . . . . . Part Schematics Acquired 10 | . 1 . . . 5 3 1 Parts Built . | . . . . . . . . Authchips . | . . . . . . . . Time . | . . . . . . . . Total Part Build Rating . | . . . . . . . . Parts Repaired 3 | . . . . . 2 1 . Time 108 | . . . . . 76 32 . Parts Recycled . | . . . . . . . . Recycled Matter . | . . . . . . . . Retrieved Matter . | . . . . . . . . Retrieved Components 3 | . 2 . . . . 1 . Parts Scanalyzed 4 | . . . . . 4 . . Part Schematics Acquired 4 | . . . . . 4 . . Parts Damaged . | . . . . . . . . Bothacking | -11 -10 -10 -10 -9 -8 -7 -7 ------------ Run | Yrd Mat Min Exi Min Mat Fac Sto Used RIF Installer . | . . . . . . . . Robots Hacked 4 | . . . 4 . . . . Non-combat 3 | . . . 3 . . . . Combat 1 | . . . 1 . . . . Robot Hacks Applied 11 | . . . 11 . . . . parse_system 11 | . . . 11 . . . . Relay Couplers Released . | . . . . . . . . Fabnet Peak Effective % . | . . . . . . . . Robots Rewired . | . . . . . . . . Allies Hacked . | . . . . . . . . Hacks Repelled . | . . . . . . . . Allies | -11 -10 -10 -10 -9 -8 -7 -7 -------- Run | Yrd Mat Min Exi Min Mat Fac Sto Total Allies 5 | . . . . 3 1 1 . Largest Group 3 | . . . . 3 3 2 . Highest-Rated Group 40 | . . . . 40 40 36 . Highest-Rated Ally 26 | . . . . 16 16 26 . Total Orders 8 | . . . . . 1 7 . STAY 5 | . . . . . 1 4 . FOLLOW 3 | . . . . . . 3 . Ally Attacks 29 | . . . . . 29 . . Total Damage 220 | . . . . . 220 . . Kills 2 | . . . . . 2 . . Allies Corrupted . | . . . . . . . . Allies Melted . | . . . . . . . . Intel | -11 -10 -10 -10 -9 -8 -7 -7 ------- Run | Yrd Mat Min Exi Min Mat Fac Sto Active Infowar (turns) 7613 | . 137 585 617 920 516 3762 1076 Optics 4838 | . . . . . . 3762 1076 Seismic 205 | . 137 68 . . . . . Machine Analysis 2570 | . . 517 617 920 516 . . Robot Analysis Total 1 | . . . . . . 1 . Derelict Logs Recovered 2 | . . 1 . 1 . . . Drone Launches . | . . . . . . . . Drone Recoveries . | . . . . . . . . Exploration | -11 -10 -10 -10 -9 -8 -7 -7 ------------- Run | Yrd Mat Min Exi Min Mat Fac Sto Turns Passed 8820 | 318 146 653 617 920 1256 3834 1076 Spaces Moved 5859 | 98 108 333 467 707 877 2657 612 Core 8 | 8 . . . . . . . Treads . | . . . . . . . . Legs 2369 | 90 108 333 467 707 120 . 544 Wheels 3482 | . . . . . 757 2657 68 Hover . | . . . . . . . . Flight . | . . . . . . . . Fastest Speed 50 | 50 120 120 120 120 105 105 110 Average Speed 114 | 119 120 120 127 122 109 108 121 Slowest Speed 260 | 150 120 120 190 190 260 130 190 Overloaded Moves . | . . . . . . . . Propulsion Burnouts . | . . . . . . . . Robots Hopped . | . . . . . . . . Potential Cave-ins . | . . . . . . . . Cave-ins Triggered . | . . . . . . . . Exploration Rate (%) 57 | 5 22 59 70 98 53 62 92 Regions Visited 7 Branch Regions 4 Pre-discovered Areas 2 | . . 1 1 . . . . Known Exits Taken 1 | . . . . . . 1 . Unknown Exits Taken 6 | 1 1 1 1 1 1 . . Scrap Searched 3 | . . 2 . 1 . . . Spaces Dug . | . . . . . . . . Terrain Destroyed 105 | . . . . 15 . 59 31 Melee . | . . . . . . . . Projectile 48 | . . . . . . 17 31 AOE 57 | . . . . 15 . 42 . Terrain Rammed . | . . . . . . . . Walls Destroyed . | . . . . . . . . Machines Disabled . | . . . . . . . . Actions | -11 -10 -10 -10 -9 -8 -7 -7 --------- Run | Yrd Mat Min Exi Min Mat Fac Sto Total 7669 | 235 124 584 490 743 1106 3482 905 Wait 1314 | 82 1 239 . 10 136 657 189 Move 5852 | 97 107 332 466 706 876 2656 612 Hop . | . . . . . . . . Pick Up 89 | 3 8 2 2 6 24 30 14 Fast Attach 32 | 7 1 2 2 1 6 10 3 Attach 42 | . . . 2 2 4 17 17 Detach 10 | . 1 . 1 . . 1 7 Swap 41 | 1 . 3 1 . 13 12 11 Drop 86 | . 4 4 5 5 16 39 13 Fire 163 | 45 1 1 . 10 30 59 17 Melee 13 | . . . 11 . . . 2 Ram 2 | . . . . . 1 1 . Kick 7 | . 1 1 . 3 . . 2 Crush . | . . . . . . . . Escape Stasis . | . . . . . . . . Rewire . | . . . . . . . . Trap 18 | . . . . . . . 18 Miscellaneous . | . . . . . . . . Route ------- -11/Scrapyard -10/Materials -10/Mines -10/Exiles -9/Mines (discovered 2 exits: *Mat x2) -8/Materials -7/Factory (discovered 6 exits: [*Fac x2] / *Sto x2 / *Low x2) -7/Storage (discovered 1 exit: [*Rec]) History --------- Turn | Location | Event 9 | -11/Scrapyard | Discovered new exit (range 15) 319 | -11/Scrapyard | Entered Materials 319 | -10/Materials | Discovered new exit (range 8) 320 | -10/Materials | Build established: Mutant 405 | -10/Materials | Met 8R-AWN 465 | -10/Materials | Entered Mines 466 | -10/Mines | Followed 8R-AWN into the Mines 522 | -10/Mines | YI-UF0 nonchalantly dropped a Grenade Launcher on the ground 558 | -10/Mines | Received a Rocket Launcher from a helpful Derelict 564 | -10/Mines | Lost 3 parts (1p1u1w) 584 | -10/Mines | Met a Derelict shopkeep closing up shop 688 | -10/Mines | Found a damaged Exp. Sensor Array with a note attached 702 | -10/Mines | Learned location of Storage (-7) 880 | -10/Mines | Discovered new exit (range 5) 1118 | -10/Mines | Entered Exiles 1148 | -10/Exiles | Welcomed by 8R-AWN 1169 | -10/Exiles | Met EX-HEX 1214 | -10/Exiles | Met EX-DEC 1222 | -10/Exiles | Learned location of Zion (-6) 1249 | -10/Exiles | Met EX-BIN 1262 | -10/Exiles | Aligned with FarCom system 1264 | -10/Exiles | Given EX-Vault access code 1297 | -10/Exiles | Opened EX-Vault 1308 | -10/Exiles | Found AWS/Gauss 1337 | -10/Exiles | Warned to stay clear of 0b10 Research branches 1428 | -10/Exiles | Learned about 8R-AWN's background 1720 | -10/Exiles | Discovered new exit (range 10) 1735 | -10/Exiles | Left Exiles lab with AWS/Gauss 1735 | -10/Exiles | Entered Mines 1818 | -9/Mines | Learned Materials interactive machine intel 1985 | -9/Mines | Found a hidden stash of uninstalled traps 2069 | -9/Mines | A weapon hastily lodged in a ceiling crevice suddenly fell to the ground 2266 | -9/Mines | Discovered new exit (range 8) 2357 | -9/Mines | Discovered new exit (range 11) 2427 | -9/Mines | Assisted by bots powering up and referring to "LRC-V3" 2655 | -9/Mines | Entered Materials 2655 | -8/Materials | Accompanied by 3 allies 2655 | -8/Materials | Evolved 4 slots: Propulsion x2, Utility x2 2656 | -8/Materials | Loaded intel: 19 interactive machine locations 2739 | -8/Materials | Garrison activated, responded to threat 3789 | -8/Materials | Repaired Arm. Wheel 3835 | -8/Materials | Repaired Gatling Laser 3850 | -8/Materials | Discovered new exit (range 15) 3911 | -8/Materials | Entered Factory 3911 | -7/Factory | Accompanied by 1 ally 3911 | -7/Factory | Evolved 2 slots: Utility x2 4178 | -7/Factory | Discovered new exit (range 22) 4789 | -7/Factory | Identified exit to Storage 4789 | -7/Factory | Identified exit to Lower Caves 4804 | -7/Factory | Repaired Arm. Wheel 5229 | -7/Factory | AWS/Gauss suddenly broke down 5728 | -7/Factory | Build established: Hacker-Mutant 6311 | -7/Factory | First assault squad dispatched 6664 | -7/Factory | Build established: Mutant 7032 | -7/Factory | Discovered new exit (range 12) 7745 | -7/Factory | Entered Storage 8121 | -7/Storage | Used back door to open Recycling access 8121 | -7/Storage | Discovered new exit (range 5) 8321 | -7/Storage | AWS/Gauss suddenly broke down 8586 | -7/Storage | Found Rocket Array 8588 | -7/Storage | Found Rocket Array 8692 | -7/Storage | AWS/Gauss suddenly broke down 8701 | -7/Storage | Garrison activated, responded to threat 8774 | -7/Storage | Core integrity fell below 50% 8821 | -7/Storage | Released all parts (11) 8821 | -7/Storage | Self-destructed Last Messages --------------- Access door sealed. 08777_ R-06 Scavenger collects Wheel. 08780_ 3OSJ4SIMIFWU:ENEFPGQIMADKYVJLN6ELI 08789_ Kicked A-02 Transporter. 08789_ Destroyed Weight Redist. System. 08789_ A-02 Transporter system corrupted by crushing effect. 08794_ Imp. Carbon-fiber Leg destroyed. 08812_ System corrupted: IFF burst signal emitted. 08820_ Imp. Carbon-fiber Leg destroyed. 08821_ Released Gatling Laser. 08821_ Released Imp. Cooling System. 08821_ Released Hvy. Deuterium Engine. 08821_ Released Core Analyzer. 08821_ Released Enh. Optical Array. 08821_ Released Hcp. Storage Unit. 08821_ Released Imp. Carbon-fiber Leg. 08821_ Released Hacking Suite. 08821_ Released Lyr. Light Armor Plating. Map ----- +----------------------------------------------------+ | | | | | | | | | | | | | | | | | | | | | | | | | | | | | | | ??????????????????????????????? | | ???????????????????????????###? | | ##############????????????? #? | | ??????????"" #? | | ??????????T" #? | | ??????????"" #? | | ######?????????????????[?? o ?? | | #??????????#?????????????= ??? | | ###########"#############Y#??? | | + h =!/[!#??? | | #### ######"######???#!k@/#??? | | #??# #?# ###?#!!!!#??? | | #??# #?#!!! "" ""#?#!!!!#??? | | #??# #?#!! """ ""#?# ]]!#??? | | #??# #?#!! T" T"#?# #??? | | ##??# #?# ! """ ""#?# ##;#### | | ????# ### "" ""#?# # # | | ????# ## ###?# # # | | ????# ### #???# #gg # | | ##### ######""#####???#?# # | | ######## # # | | = + g # | | % %=######## # # | | ###+######+#"+[#??????# ##+#### | | ?# ## #??????# #??? | | !# ## * %#??????####Y#??? | | ## #?????????# #??? | | !#T### #?????????# #??? | | ###??# #??######## #??? | | ?????# ! [!#??# # #??? | | ?????# #??# " # #??? | | ?????# ! % #?## T # #??? | | ##############+#?# " ] # #??? | | ^ ^^ ^ #?# #### # #??? | | "" """ """ #?#*##?# # #??? | +----------------------------------------------------+ Best States ------------- Heat Dissipation 88 Energy Generation 18 Energy Capacity 310 Matter Stores 300 Matter Capacity 300 Sight Range 22 Terrain Scan Density 10 Base Temperature (-) 100 Armor Coverage 600 Resistance: EM 15 Evasion (%) 55 Core Analysis 6 Offensive Hacking 30 Defensive Hacking 12 Authchip Count 8 Trap Extractor Capacity 6 Item Schematics ----------------- Hcp. Storage Unit | -10/Materials | Hacked Pulse Rifle | -8/Materials | Scanalyzed Cryofiber Web | -8/Materials | Scanalyzed Arm. Wheel | -8/Materials | Hacked Imp. Carbon-fiber Leg | -8/Materials | Scanalyzed Gatling Laser | -8/Materials | Scanalyzed Lgt. Armored Exoskeleton | -7/Factory | Hacked Coolant Injector | -7/Factory | Hacked Hrd. Heavy Armor Plating | -7/Factory | Hacked Adv. Plasma Cannon | -7/Storage | Hacked Robot Schematics ------------------ M-13 Machinist | -7/Factory | Hacked Fabricated ------------ Nothing Repaired ---------- Arm. Wheel | 37% | -8/Materials Gatling Laser | 56% | -8/Materials Arm. Wheel | 59% | -7/Factory Alien Tech Used ----------------- None Achievements -------------- None Challenges ------------ None Game ------ Seed ReflexQuantumStorm Manual? 0 Play Time 01:45:50 Cumulative 292.8 hours Start 2025.09.01 @ 18:50:30 End 2025.09.02 @ 16:30:10 Sessions 5 Manual Loads 0 Difficulty Rogue Special Mode None Game No. 203 Rogue 203 Adventurer 0 Explorer 0 Win Type - Total 3 Types 3/0/0/0/0/0/0/0/0/0 Lore% 73 Gallery% 74 Achievement% 60 Wizard Run 0 Options --------- Layout 1 ASCII 0 Keyboard 0 Movement Numpad Keybinds 0 Fullscreen 1 Font 24/Smallcaps Map View 50x40 Zoom Use 3% Tactical HUD 1 Map Filters NONE Filters NONE Steam 1 RUN: f853ef62-bd4a-4fab-92e7-1e5f96f4d69e